bitfinex/quotes_BTCUSD_20240721
["timestamp","ask_amount","ask_price","bid_price","bid_amount"]
[1721579342243,0.01729723,67181.0,67180.0,1.09151954]
[1721579342451,0.01729723,67181.0,67180.0,1.24037254]
[1721579342661,0.01729723,67181.0,67180.0,1.83578654]
[1721579342863,0.00337,67187.0,67186.0,0.446521]
[1721579343080,0.00337,67187.0,67186.0,0.27247954]
[1721579343300,0.00837,67188.0,67186.0,0.27247954]
[1721579343301,0.00837,67188.0,67187.0,1.401024]
[1721579343512,0.00837,67188.0,67187.0,1.52466354]
[1721579343958,0.00837,67188.0,67187.0,1.52464329]
[1721579344176,0.00837,67188.0,67187.0,1.22696729]
[1721579345031,0.00837,67188.0,67187.0,1.23896729]
[1721579345492,0.00837,67188.0,67187.0,1.22696729]
[1721579345919,0.00837,67188.0,67187.0,1.23996729]
[1721579346124,0.00837,67188.0,67187.0,1.25296729]
[1721579346330,0.00837,67188.0,67187.0,1.26696729]
[1721579347016,0.00837,67188.0,67187.0,1.25396559]
[1721579347223,0.00837,67188.0,67187.0,1.22696559]
[1721579347439,0.00837,67188.0,67187.0,1.23996559]
[1721579347880,0.02570917,67188.0,67187.0,1.24881293]
[1721579348090,0.01069221,67188.0,67187.0,1.24881293]
[1721579348294,0.00837,67188.0,67187.0,1.24881293]
[1721579349147,0.01081275,67191.0,67189.0,0.94614]
[1721579349382,0.01081275,67191.0,67190.0,0.12361759]
[1721579350030,0.18822482,67191.0,67190.0,0.12361759]
[1721579350263,0.15964375,67190.0,67189.0,0.94614]
[1721579350548,1.12606241,67190.0,67189.0,0.94614]
[1721579351211,0.40744375,67190.0,67189.0,0.94614]
[1721579351646,0.25861275,67190.0,67189.0,1.06976687]
[1721579352098,0.40744375,67190.0,67189.0,1.07076687]
[1721579352506,0.70510675,67190.0,67189.0,1.07076687]
[1721579352711,0.70510675,67190.0,67189.0,1.07176687]
[1721579353159,0.70510675,67190.0,67189.0,1.07176816]
[1721579353349,0.70510675,67190.0,67189.0,0.95214]
[1721579353564,0.70510675,67190.0,67189.0,1.07576811]
[1721579353783,0.396631,67190.0,67189.0,1.06976821]
[1721579354000,0.396631,67190.0,67189.0,1.07476821]
[1721579354424,0.396631,67190.0,67189.0,1.07876821]
[1721579354838,0.396631,67190.0,67189.0,1.08361555]
[1721579355055,0.30846275,67193.0,67189.0,1.08361555]
[1721579355056,0.297654,67192.0,67191.0,0.549509]
[1721579355463,0.446481,67192.0,67191.0,0.549509]
[1721579355680,0.75494775,67192.0,67191.0,0.549509]
[1721579356951,0.75494775,67192.0,67191.0,0.56135634]
[1721579357156,0.75494775,67192.0,67191.0,0.56335634]
[1721579357157,0.86995246,67192.0,67191.0,0.56335634]
[1721579357580,0.85913971,67192.0,67191.0,0.56335634]
[1721579357790,0.85913971,67192.0,67191.0,0.68698147]
[1721579357791,0.01500471,67192.0,67191.0,0.68698147]
[1721579357993,0.04431377,67195.0,67191.0,0.68698147]
[1721579357994,0.14882,67195.0,67191.0,0.68698147]
[1721579358219,0.14882,67195.0,67192.0,0.12362513]
[1721579358428,0.1,67194.0,67193.0,0.12362513]
[1721579358846,0.1,67194.0,67193.0,0.12361717]
[1721579359305,0.1,67194.0,67193.0,0.12361648]
[1721579359761,0.248822,67194.0,67193.0,0.12961648]
[1721579360172,0.1,67194.0,67193.0,0.12961648]
[1721579360387,0.1108156,67203.0,67193.0,0.67912548]
[1721579360388,0.05269624,67201.0,67193.0,0.67912548]
[1721579360660,0.1,67195.0,67194.0,0.12361648]
[1721579361111,0.1,67199.0,67194.0,0.12361648]
[1721579361328,0.248811,67199.0,67195.0,0.12361648]
[1721579361559,0.248811,67199.0,67196.0,0.12361648]
[1721579361560,0.1,67199.0,67196.0,0.12361648]
[1721579361766,0.15119213,67198.0,67197.0,0.12361648]
[1721579362194,0.10237813,67198.0,67197.0,0.12361648]
[1721579363034,0.10237813,67198.0,67197.0,0.13261648]
[1721579363237,0.25119113,67198.0,67197.0,0.13261648]
[1721579363650,1.23398488,67198.0,67197.0,0.13261648]
[1721579363860,1.23398488,67198.0,67197.0,0.009]
[1721579363861,1.29818488,67198.0,67197.0,0.009]
[1721579364059,1.36467066,67198.0,67197.0,0.558509]
[1721579364295,1.06704866,67198.0,67197.0,0.567509]
[1721579365542,1.00055788,67198.0,67197.0,0.567509]
[1721579365700,1.06704974,67198.0,67197.0,0.567509]
[1721579365905,1.00055788,67198.0,67197.0,0.567509]
[1721579366114,1.29818488,67198.0,67197.0,0.567509]
[1721579366312,1.39764697,67198.0,67197.0,0.567509]
[1721579369495,1.42064697,67198.0,67197.0,0.567509]
[1721579370141,1.42064697,67198.0,67197.0,0.549509]
[1721579370545,1.42064697,67198.0,67197.0,0.551509]
[1721579371359,1.71827397,67198.0,67197.0,0.551509]
[1721579371767,1.71827397,67198.0,67197.0,0.553509]
[1721579372008,1.73329845,67198.0,67197.0,0.553509]
[1721579386722,1.73329845,67198.0,67197.0,0.56235462]
[1721579388819,1.73329845,67198.0,67197.0,0.553509]
[1721579395095,1.29237145,67198.0,67197.0,0.553509]
[1721579395301,0.86146961,67198.0,67197.0,0.553509]
[1721579395512,0.11740261,67198.0,67197.0,0.700509]
[1721579395706,0.01740261,67198.0,67197.0,0.82412647]
[1721579395936,0.10224793,67198.0,67197.0,0.82412647]
[1721579396150,0.11733602,67198.0,67197.0,0.82412647]
[1721579396389,0.11733602,67198.0,67197.0,0.82212647]
[1721579396525,0.11733602,67198.0,67197.0,0.82012647]
[1721579396733,0.11733602,67198.0,67197.0,0.82212647]
[1721579396940,0.11733602,67198.0,67197.0,0.97094247]
[1721579397158,0.00837,67201.0,67198.0,0.148813]
[1721579397386,0.00837,67201.0,67200.0,0.2165]
[1721579397603,0.00837,67201.0,67200.0,0.34011747]
[1721579398953,0.10837,67201.0,67200.0,0.34511747]
[1721579399362,0.11076144,67201.0,67200.0,0.34511747]
[1721579399572,0.297603,67204.0,67203.0,0.28994256]
[1721579399783,0.546403,67204.0,67203.0,0.28994256]
[1721579400223,0.99802792,67204.0,67203.0,0.28994256]
[1721579400429,1.34083662,67204.0,67203.0,0.28994256]
[1721579400650,1.27421952,67204.0,67203.0,0.28994256]
[1721579401531,1.57182252,67204.0,67203.0,0.28994256]
[1721579402417,1.57182252,67204.0,67203.0,0.29394256]
[1721579403046,1.57182252,67204.0,67203.0,0.28994256]
[1721579403889,1.27421952,67204.0,67203.0,0.28994256]
[1721579404728,1.27421952,67204.0,67203.0,0.29878936]
[1721579406591,1.36224566,67204.0,67203.0,0.29878936]
[1721579406807,1.36224566,67204.0,67203.0,0.35958936]
[1721579407024,1.25121952,67204.0,67203.0,0.35958936]
[1721579407245,1.25121952,67204.0,67203.0,0.35074256]
[1721579408064,1.27421952,67204.0,67203.0,0.35074256]
[1721579408940,0.1888418,67204.0,67203.0,0.35074256]
[1721579409159,0.297575,67210.0,67203.0,0.35074256]
[1721579409160,0.06663322,67205.0,67203.0,0.35074256]
[1721579409362,0.06663322,67205.0,67203.0,0.43344256]
[1721579409363,0.04442312,67205.0,67203.0,0.43344256]
[1721579409583,0.14442312,67206.0,67203.0,0.43344256]
[1721579409827,0.19322012,67206.0,67204.0,0.28994256]
[1721579410074,0.1,67205.0,67204.0,0.43344256]
[1721579410559,0.248798,67205.0,67204.0,0.43344256]
[1721579411068,0.58020675,67205.0,67204.0,0.43344256]
[1721579411588,0.94443044,67205.0,67204.0,0.43344256]
[1721579411997,1.04311751,67205.0,67204.0,0.28994256]
[1721579412204,0.97648982,67205.0,67204.0,0.29878857]
[1721579413402,1.27408582,67205.0,67204.0,0.29878857]
[1721579414318,1.28966062,67205.0,67204.0,0.29878857]
[1721579414772,1.40066499,67205.0,67204.0,0.29878857]
[1721579415618,1.41768455,67205.0,67204.0,0.29878857]
[1721579416052,1.30668018,67205.0,67204.0,0.29878857]
[1721579416467,1.41762417,67205.0,67204.0,0.29878857]
[1721579417304,1.41763838,67205.0,67204.0,0.29878857]
[1721579417537,1.09785783,67205.0,67204.0,0.44388857]
[1721579417845,1.07566551,67205.0,67204.0,0.44388857]
[1721579418350,1.07566953,67205.0,67204.0,0.44388857]
[1721579418560,1.00908418,67205.0,67204.0,0.44388857]
[1721579418764,1.09785783,67205.0,67204.0,0.44388857]
[1721579419194,1.39545383,67205.0,67204.0,0.44388857]
[1721579419407,1.48353838,67205.0,67204.0,0.29878857]
[1721579420273,1.37258018,67205.0,67204.0,0.29878857]
[1721579420728,1.37258018,67205.0,67204.0,0.28994256]
[1721579421631,1.30668018,67205.0,67204.0,0.28994256]
[1721579427461,1.30732811,67205.0,67204.0,0.28994256]
[1721579430559,1.44067594,67205.0,67204.0,0.28994256]
[1721579431208,1.30732811,67205.0,67204.0,0.28994256]
[1721579431903,2.13706611,67205.0,67204.0,0.28994256]
[1721579433640,2.13790611,67205.0,67204.0,0.28994256]
[1721579434267,2.10981211,67205.0,67204.0,0.28994256]
[1721579434474,1.90077211,67205.0,67204.0,0.28994256]
[1721579436579,1.90077211,67205.0,67203.0,0.17089956]
[1721579436580,1.10241575,67204.0,67203.0,0.17089956]
[1721579436812,1.90840509,67204.0,67203.0,0.17089956]
[1721579437112,3.18320755,67204.0,67203.0,0.17089956]
[1721579437338,3.18320755,67204.0,67203.0,0.02209456]
[1721579437771,3.18320755,67204.0,67190.0,0.000924]
[1721579437772,1.35027375,67191.0,67190.0,0.000924]
[1721579437986,1.61491103,67191.0,67190.0,0.000924]
[1721579438203,1.71491103,67191.0,67190.0,0.000924]
[1721579438661,1.78955175,67182.0,67181.0,1.2486]
[1721579438908,1.59270022,67182.0,67181.0,1.2486]
[1721579439103,1.71570022,67182.0,67181.0,1.2486]
[1721579439573,0.80507975,67180.0,67179.0,0.000924]
[1721579439768,1.02942472,67180.0,67179.0,0.000924]
[1721579440005,1.03231815,67180.0,67179.0,0.000924]
[1721579440527,1.62773215,67180.0,67179.0,0.000924]
[1721579441035,1.63273215,67180.0,67179.0,0.000924]
[1721579441801,1.78249894,67180.0,67179.0,0.000924]
[1721579442317,1.78749894,67180.0,67179.0,0.001924]
[1721579443620,1.78749894,67180.0,67179.0,0.000924]
[1721579443621,1.78249894,67180.0,67179.0,0.000924]
[1721579443881,1.63273215,67180.0,67179.0,0.000924]
[1721579444146,1.62873215,67180.0,67179.0,0.001924]
[1721579444699,1.68955025,67180.0,67179.0,0.001924]
[1721579444988,1.04081278,67180.0,67179.0,0.001924]
[1721579445258,0.6657984,67180.0,67179.0,1.396924]
[1721579445497,0.96031815,67180.0,67179.0,1.396924]
[1721579445733,0.98831815,67180.0,67179.0,1.397924]
[1721579446216,0.99731815,67180.0,67179.0,1.397924]
[1721579446439,0.97431815,67180.0,67179.0,1.397924]
[1721579446941,0.95931815,67180.0,67179.0,1.395924]
[1721579447195,0.98231815,67180.0,67179.0,1.395924]
[1721579447447,0.98431815,67180.0,67179.0,1.395924]
[1721579447687,0.99900302,67180.0,67179.0,1.395924]
[1721579448733,1.00000302,67180.0,67179.0,1.395924]
[1721579449210,0.99800302,67180.0,67179.0,1.395924]
[1721579451398,0.99800302,67180.0,67179.0,1.249524]
[1721579451399,1.29571002,67180.0,67179.0,1.249524]
[1721579452104,1.29471002,67180.0,67179.0,1.249524]
[1721579452369,1.29571002,67180.0,67179.0,1.249524]
[1721579452621,0.99800302,67180.0,67179.0,1.249524]
[1721579452851,0.99800302,67180.0,67179.0,1.393024]
[1721579453084,0.99900302,67180.0,67179.0,1.393024]
[1721579453332,0.99801065,67180.0,67179.0,1.393024]
[1721579453577,0.99701065,67180.0,67179.0,1.393024]
[1721579453829,1.02058973,67180.0,67179.0,1.393024]
[1721579454350,1.31729673,67180.0,67179.0,1.393024]
[1721579455363,1.31029673,67180.0,67179.0,1.249524]
[1721579456302,1.31329673,67180.0,67179.0,1.249524]
[1721579456767,1.32329673,67180.0,67179.0,1.249524]
[1721579457014,1.32029673,67180.0,67179.0,1.249524]
[1721579457262,1.61800373,67180.0,67179.0,1.249524]
[1721579457499,1.61500373,67180.0,67179.0,1.249524]
[1721579457777,1.62200373,67180.0,67179.0,1.250524]
[1721579458252,1.96971073,67180.0,67179.0,0.001924]
[1721579458517,1.71633936,67180.0,67179.0,0.001924]
[1721579458789,1.72333936,67180.0,67179.0,0.001924]
[1721579459018,1.71633936,67180.0,67179.0,0.001924]
[1721579459483,2.19756374,67180.0,67179.0,0.001924]
[1721579459739,2.21973156,67180.0,67179.0,0.001924]
[1721579459996,2.21973156,67180.0,67179.0,0.000924]
[1721579460467,2.21973156,67180.0,67179.0,0.001924]
[1721579460718,2.1310603,67180.0,67179.0,0.001924]
[1721579461233,2.21970454,67180.0,67179.0,0.001924]
[1721579461496,2.1310603,67180.0,67179.0,0.001924]
[1721579462192,2.21971882,67180.0,67179.0,0.001924]
[1721579462421,2.29551882,67180.0,67179.0,0.001924]
[1721579462712,2.28930995,67180.0,67179.0,0.001924]
[1721579463213,2.46133743,67180.0,67179.0,0.001924]
[1721579463716,2.57283743,67180.0,67179.0,1e-06]
[1721579464439,2.56985668,67180.0,67179.0,1e-06]
[1721579464674,2.51985668,67180.0,67179.0,1e-06]
[1721579464922,1.687586,67172.0,67171.0,1.2486]
[1721579465159,1.687586,67172.0,67169.0,1.2486]
[1721579465160,0.15968775,67170.0,67169.0,1.2486]
[1721579465385,1.62057524,67170.0,67169.0,1.2486]
[1721579465608,1.62592414,67170.0,67169.0,1.2486]
[1721579466029,2.06097514,67170.0,67169.0,1.2486]
[1721579466237,2.06097127,67170.0,67169.0,1.2486]
[1721579466679,1.89335547,67170.0,67169.0,1.2486]
[1721579466858,1.87935547,67170.0,67169.0,1.2486]
[1721579467315,1.92367127,67170.0,67169.0,1.2486]
[1721579467543,1.88232766,67170.0,67169.0,1.2486]
[1721579468426,1.91032766,67170.0,67169.0,1.2486]
[1721579469140,2.55884947,67170.0,67169.0,1.2486]
[1721579469360,2.55884947,67170.0,67169.0,1.09972]
[1721579469361,2.90660047,67170.0,67169.0,1.09972]
[1721579469802,3.01733262,67170.0,67169.0,1.09972]
[1721579470031,2.88719413,67170.0,67169.0,1.09972]
[1721579470252,2.87319413,67170.0,67169.0,0.95084]
[1721579470463,2.85919413,67170.0,67169.0,0.95084]
[1721579470681,2.87319413,67170.0,67169.0,0.95084]
[1721579471116,2.82319413,67170.0,67169.0,0.95084]
[1721579471330,2.69846198,67170.0,67169.0,0.95084]
[1721579471543,2.67859498,67170.0,67169.0,0.95084]
[1721579471782,2.67859498,67170.0,67169.0,0.921064]
[1721579471783,2.84694455,67170.0,67169.0,0.921064]
[1721579472013,2.84694455,67170.0,67169.0,0.80196]
[1721579472233,2.84694455,67170.0,67169.0,0.682856]
[1721579472234,2.89694455,67170.0,67169.0,0.682856]
[1721579472486,2.70659498,67170.0,67169.0,0.65308]
[1721579472708,1.80798098,67170.0,67169.0,0.65308]
[1721579472938,1.60515698,67170.0,67169.0,0.65308]
[1721579473790,1.59115698,67170.0,67169.0,0.65308]
[1721579474020,0.74439,67169.0,67167.0,0.078824]
[1721579474268,2.19630034,67169.0,67167.0,0.000924]
[1721579474486,2.59703068,67169.0,67167.0,0.000924]
[1721579474713,2.52998111,67169.0,67167.0,0.000924]
[1721579474946,2.59641767,67169.0,67167.0,0.000924]
[1721579475408,2.64638536,67169.0,67167.0,0.000924]
[1721579475645,2.66852011,67169.0,67168.0,6.5e-07]
[1721579475871,0.20971275,67159.0,67158.0,0.000924]
[1721579476087,1.51842567,67159.0,67158.0,0.000924]
[1721579476309,2.0955262,67159.0,67158.0,0.000924]
[1721579476534,2.3933262,67159.0,67158.0,0.000924]
[1721579476754,2.12350472,67159.0,67158.0,0.000924]
[1721579476980,2.05710374,67159.0,67158.0,0.000924]
[1721579477198,1.64886075,67153.0,67152.0,0.65308]
[1721579477417,1.64886075,67153.0,67146.0,0.65308]
[1721579477418,0.75544475,67147.0,67146.0,0.65308]
[1721579477643,1.55626434,67147.0,67146.0,0.65308]
[1721579477879,1.57926434,67147.0,67146.0,0.65308]
[1721579478085,1.58213864,67147.0,67146.0,0.64852]
[1721579478749,1.58213864,67147.0,67146.0,0.64952]
[1721579480449,1.58213864,67147.0,67146.0,0.64269555]
[1721579481991,1.58213864,67147.0,67146.0,0.64169555]
[1721579482208,1.74853864,67147.0,67146.0,0.64169555]
[1721579482429,2.12798064,67147.0,67146.0,0.64169555]
[1721579482646,2.11898064,67147.0,67146.0,0.64169555]
[1721579482866,2.13698064,67147.0,67146.0,0.64169555]
[1721579483093,1.35117375,67146.0,67135.0,0.64169555]
[1721579483339,1.58222391,67146.0,67135.0,0.64169555]
[1721579483555,1.58222391,67146.0,67136.0,0.002794]
[1721579484463,1.59780423,67146.0,67136.0,0.002794]
[1721579484898,1.60580423,67146.0,67136.0,0.002794]
[1721579485974,1.61380423,67146.0,67136.0,0.002794]
[1721579486189,1.75214161,67146.0,67136.0,0.002794]
[1721579486633,1.75214161,67146.0,67135.0,0.64169555]
[1721579487103,2.09999961,67146.0,67137.0,0.64169555]
[1721579487355,2.13845381,67146.0,67137.0,0.64169555]
[1721579487571,2.09999961,67146.0,67137.0,0.64169555]
[1721579488489,1.66380423,67146.0,67137.0,0.64169555]
[1721579488714,1.66380423,67146.0,67142.0,0.0803]
[1721579488928,1.66380423,67146.0,67144.0,0.0601]
[1721579489141,1.29294623,67146.0,67145.0,0.081224]
[1721579489357,1.29294623,67146.0,67145.0,0.72291955]
[1721579489571,1.29294623,67146.0,67145.0,0.78301955]
[1721579490659,1.30513348,67146.0,67145.0,0.78301955]
[1721579490922,1.00727548,67146.0,67145.0,0.78301955]
[1721579491649,1.30794623,67146.0,67145.0,0.78301955]
[1721579492100,1.29994623,67146.0,67145.0,0.78301955]
[1721579492315,1.59980423,67146.0,67145.0,0.78301955]
[1721579492535,1.60521343,67146.0,67145.0,0.63794995]
[1721579492757,1.340442,67142.0,67141.0,0.69804995]
[1721579492975,1.47992287,67142.0,67141.0,0.63794995]
[1721579493190,1.58432685,67142.0,67141.0,0.63794995]
[1721579494985,1.58715679,67142.0,67141.0,0.63794995]
[1721579495408,1.59115679,67142.0,67141.0,0.63794995]
[1721579496281,1.59415679,67142.0,67141.0,0.63794995]
[1721579497611,1.68691162,67142.0,67141.0,0.63794995]
[1721579498280,2.34726762,67142.0,67141.0,0.63794995]
[1721579498520,1.89203279,67142.0,67141.0,0.63794995]
[1721579498739,1.59415679,67142.0,67141.0,0.63794995]
[1721579499159,1.58715679,67142.0,67141.0,0.63887395]
[1721579499388,1.94950636,67142.0,67141.0,0.63887395]
[1721579499629,1.97050636,67142.0,67141.0,0.63887395]
[1721579501239,1.60815679,67142.0,67141.0,0.63887395]
[1721579501456,1.60815679,67142.0,67141.0,0.77727395]
[1721579503656,1.60815679,67142.0,67141.0,0.70227395]
[1721579503868,1.60815679,67142.0,67141.0,0.63887395]
[1721579505574,1.65246962,67142.0,67141.0,0.63887395]
[1721579505796,1.60815679,67142.0,67141.0,0.63887395]
[1721579506006,1.80682434,67142.0,67141.0,0.63887395]
[1721579506270,2.19526634,67142.0,67141.0,0.63887395]
[1721579506713,2.04429634,67142.0,67141.0,0.63887395]
[1721579506931,1.76250636,67142.0,67141.0,0.63887395]
[1721579507588,1.80682434,67142.0,67141.0,0.63887395]
[1721579507810,1.76250636,67142.0,67141.0,0.63887395]
[1721579508246,1.60815679,67142.0,67141.0,0.77547395]
[1721579508465,1.65248789,67142.0,67141.0,0.77547395]
[1721579508681,1.60815679,67142.0,67141.0,0.77547395]
[1721579508904,1.33161189,67142.0,67141.0,0.77547395]
[1721579509128,1.28728079,67142.0,67141.0,0.77547395]
[1721579509372,1.28728079,67142.0,67141.0,0.89920551]
[1721579509373,0.02823392,67142.0,67141.0,0.89920551]
[1721579509594,0.02823392,67142.0,67141.0,1.07300551]
[1721579509815,0.169938,67142.0,67141.0,1.07300551]
[1721579510041,0.169938,67142.0,67141.0,0.89920551]
[1721579510042,0.457814,67142.0,67141.0,0.89920551]
[1721579510299,0.76005653,67142.0,67141.0,0.89920551]
[1721579510942,1.1744134,67142.0,67141.0,0.89920551]
[1721579511169,1.1974134,67142.0,67141.0,0.77547395]
[1721579511612,1.1964134,67142.0,67141.0,0.77547395]
[1721579511830,1.1994134,67142.0,67141.0,0.77547395]
[1721579512056,1.2864134,67142.0,67141.0,0.77547395]
[1721579512279,1.2864134,67142.0,67141.0,0.77647395]
[1721579512502,1.33078755,67142.0,67141.0,0.77747395]
[1721579512960,1.33346477,67142.0,67141.0,0.77747395]
[1721579513610,1.35565184,67142.0,67141.0,0.77747395]
[1721579513834,1.28909062,67142.0,67141.0,0.77747395]
[1721579514045,1.58696662,67142.0,67141.0,0.77747395]
[1721579514549,1.37783892,67142.0,67141.0,0.77747395]
[1721579514778,1.28909062,67142.0,67141.0,0.77747395]
[1721579515911,1.37796085,67142.0,67141.0,0.77747395]
[1721579516126,1.35574702,67142.0,67141.0,0.77747395]
[1721579516350,1.28909062,67142.0,67141.0,0.77747395]
[1721579516569,1.37796085,67142.0,67141.0,0.77747395]
[1721579516791,1.28909062,67142.0,67141.0,0.77747395]
[1721579517240,1.40016767,67142.0,67141.0,0.77747395]
[1721579517479,1.28909062,67142.0,67141.0,0.77747395]
[1721579518610,1.28909062,67142.0,67141.0,0.70107395]
[1721579519888,1.64338846,67142.0,67141.0,0.64087395]
[1721579520327,1.58696662,67142.0,67141.0,0.64087395]
[1721579520542,1.28909062,67142.0,67141.0,0.64087395]
[1721579520984,1.58696662,67142.0,67141.0,0.64087395]
[1721579521891,1.28909062,67142.0,67141.0,0.64087395]
[1721579522141,1.28909062,67142.0,67141.0,0.70167395]
[1721579522359,1.28909062,67142.0,67141.0,0.77697395]
[1721579522360,0.98040187,67142.0,67141.0,0.77697395]
[1721579522788,1.09569201,67142.0,67141.0,0.77697395]
[1721579523001,1.39356801,67142.0,67141.0,0.77697395]
[1721579523217,0.66915255,67142.0,67141.0,0.77697395]
[1721579523435,0.5578418,67142.0,67141.0,0.77697395]
[1721579523864,0.50236819,67142.0,67141.0,0.77697395]
[1721579524080,0.4578418,67142.0,67141.0,0.77697395]
[1721579524308,0.0110278,67142.0,67141.0,0.77697395]
[1721579524536,0.0110278,67142.0,67141.0,0.90069162]
[1721579525198,0.148931,67145.0,67142.0,0.1361]
[1721579525446,0.04452639,67145.0,67144.0,0.1361]
[1721579525661,0.04452639,67145.0,67141.0,0.63987395]
[1721579525846,0.04736518,67145.0,67143.0,0.1361]
[1721579526111,0.00283879,67145.0,67144.0,0.138894]
[1721579526341,0.00283879,67145.0,67144.0,0.1361]
[1721579526777,0.44963179,67145.0,67144.0,0.1361]
[1721579526995,0.54963179,67145.0,67144.0,0.1361]
[1721579527435,0.55163179,67145.0,67144.0,0.1401]
[1721579528087,0.54963179,67145.0,67144.0,0.1361]
[1721579528300,0.55063179,67145.0,67144.0,0.1521]
[1721579528754,0.55163179,67145.0,67144.0,0.1521]
[1721579528758,0.10483879,67145.0,67144.0,0.1521]
[1721579528995,0.10383879,67145.0,67144.0,0.1441]
[1721579529254,0.25276979,67145.0,67144.0,0.1441]
[1721579529969,0.25176979,67145.0,67144.0,0.1361]
[1721579530200,0.25276979,67145.0,67144.0,0.1401]
[1721579530686,0.25276979,67145.0,67144.0,0.77404995]
[1721579530941,0.10583879,67145.0,67144.0,0.78304995]
[1721579531456,0.96664194,67145.0,67144.0,0.78304995]
[1721579531709,1.26450394,67145.0,67144.0,0.78304995]
[1721579531956,1.26250394,67145.0,67144.0,0.77904995]
[1721579532207,1.27892426,67145.0,67144.0,0.77904995]
[1721579532461,1.27892426,67145.0,67144.0,0.77404995]
[1721579532462,0.96924951,67145.0,67144.0,0.77404995]
[1721579533880,0.67138751,67145.0,67144.0,0.77404995]
[1721579534320,0.67138751,67145.0,67144.0,0.77504995]
[1721579534759,0.67138751,67145.0,67144.0,0.77404995]
[1721579535243,0.67138751,67145.0,67144.0,0.77604995]
[1721579535770,0.67138751,67145.0,67144.0,0.77404995]
[1721579536057,0.67138751,67145.0,67144.0,0.77604995]
[1721579536288,0.97024951,67145.0,67144.0,0.78004995]
[1721579536799,0.96924951,67145.0,67144.0,0.77904995]
[1721579537257,0.96924951,67145.0,67144.0,0.77704995]
[1721579537523,0.97766947,67145.0,67144.0,0.77704995]
[1721579537747,0.97766947,67145.0,67144.0,0.78004995]
[1721579538921,0.98848222,67145.0,67144.0,0.78004995]
[1721579539396,0.97766947,67145.0,67144.0,0.78004995]
[1721579539862,0.98848222,67145.0,67144.0,0.78004995]
[1721579540097,0.97766947,67145.0,67144.0,0.78004995]
[1721579540329,0.98848222,67145.0,67144.0,0.78889741]
[1721579540561,0.97766947,67145.0,67144.0,0.78889741]
[1721579540794,0.98848222,67145.0,67144.0,0.78889741]
[1721579542311,0.97766947,67145.0,67144.0,0.78889741]
[1721579543082,0.97766947,67145.0,67144.0,0.78004995]
[1721579544050,1.28634422,67145.0,67144.0,0.64394995]
[1721579544973,1.27553147,67145.0,67144.0,0.64394995]
[1721579545242,0.98848222,67145.0,67144.0,0.64394995]
[1721579546435,1.58420622,67145.0,67144.0,0.64394995]
[1721579546666,1.39833096,67145.0,67144.0,0.64394995]
[1721579546894,1.30934422,67145.0,67144.0,0.64394995]
[1721579547124,1.42057765,67145.0,67144.0,0.64394995]
[1721579547358,1.30934422,67145.0,67144.0,0.64394995]
[1721579547602,1.42057765,67145.0,67144.0,0.63794995]
[1721579548346,1.30934422,67145.0,67144.0,0.63794995]
[1721579550918,1.31211148,67145.0,67144.0,0.63794995]
[1721579551120,1.30929229,67145.0,67144.0,0.63794995]
[1721579551482,1.60715429,67145.0,67144.0,0.63794995]
[1721579551914,1.30929229,67145.0,67144.0,0.63794995]
[1721579554705,1.31208397,67145.0,67144.0,0.63794995]
[1721579554906,1.30927029,67145.0,67144.0,0.63794995]
[1721579556073,1.38997029,67145.0,67144.0,0.63794995]
[1721579556496,1.68783229,67145.0,67144.0,0.63794995]
[1721579556715,1.84218186,67145.0,67144.0,0.63794995]
[1721579556932,1.05336075,67143.0,67142.0,0.63794995]
[1721579557161,1.30001796,67143.0,67142.0,0.63794995]
[1721579557376,1.92999026,67143.0,67142.0,0.63794995]
[1721579557602,1.93646883,67143.0,67142.0,0.63794995]
[1721579557811,1.73211926,67143.0,67142.0,0.63794995]
[1721579558250,1.74111926,67143.0,67142.0,0.63794995]
[1721579558520,1.87468397,67143.0,67142.0,0.63794995]
[1721579558729,1.74111926,67143.0,67142.0,0.63794995]
[1721579559149,1.73211926,67143.0,67142.0,0.63794995]
[1721579559565,1.74611926,67143.0,67142.0,0.63794995]
[1721579559803,1.87970681,67143.0,67142.0,0.63794995]
[1721579560008,1.77011926,67143.0,67142.0,0.63794995]
[1721579560252,1.35125475,67142.0,67141.0,0.000924]
[1721579560508,1.71345605,67142.0,67141.0,0.000924]
[1721579560903,1.71630472,67142.0,67141.0,0.000924]
[1721579561118,1.7162961,67142.0,67141.0,0.000924]
[1721579561534,1.7292961,67142.0,67141.0,0.000924]
[1721579561739,1.59571609,67142.0,67141.0,0.000924]
[1721579562577,1.75006566,67142.0,67141.0,0.000924]
[1721579562787,1.89764567,67142.0,67141.0,0.000924]
[1721579563000,1.76406566,67142.0,67141.0,0.000924]
[1721579563216,2.24552167,67142.0,67141.0,0.000924]
[1721579563638,2.11194166,67142.0,67141.0,0.000924]
[1721579564510,2.24546051,67142.0,67141.0,0.000924]
[1721579564715,2.11194166,67142.0,67141.0,0.000924]
[1721579564917,2.24546051,67142.0,67141.0,0.000924]
[1721579565126,1.95759209,67142.0,67141.0,0.000924]
[1721579565332,2.09111094,67142.0,67141.0,0.000924]
[1721579565524,2.26574894,67142.0,67141.0,0.000924]
[1721579567013,2.13223009,67142.0,67141.0,0.000924]
[1721579567284,2.19193009,67142.0,67141.0,0.000924]
[1721579567452,2.20307628,67142.0,67141.0,0.000924]
[1721579568084,2.33659513,67142.0,67141.0,0.000924]
[1721579568279,2.20307628,67142.0,67141.0,0.000924]
[1721579568493,2.2186566,67142.0,67141.0,0.000924]
[1721579569054,2.37300617,67142.0,67141.0,0.000924]
[1721579569265,2.50652502,67142.0,67141.0,0.000924]
[1721579570291,2.37300617,67142.0,67141.0,0.000924]
[1721579570722,2.50652502,67142.0,67141.0,0.000924]
[1721579571613,2.50670076,67142.0,67141.0,0.000924]
[1721579573335,2.37300617,67142.0,67141.0,0.000924]
[1721579573817,2.2186566,67142.0,67141.0,0.000924]
[1721579576218,2.17763864,67142.0,67141.0,0.000924]
[1721579576433,2.17763704,67142.0,67141.0,0.000924]
[1721579577070,2.17764633,67142.0,67141.0,0.000924]
[1721579578200,2.44427733,67142.0,67141.0,0.000924]
[1721579578421,2.5986269,67142.0,67141.0,0.000924]
[1721579579301,2.46499917,67142.0,67141.0,0.000924]
[1721579580217,2.59860991,67142.0,67141.0,0.000924]
[1721579580445,1.6961426,67142.0,67141.0,0.000924]
[1721579580672,1.3155666,67142.0,67141.0,0.000924]
[1721579581766,1.2885666,67142.0,67141.0,0.000924]
[1721579581989,1.6094426,67142.0,67141.0,0.000924]
[1721579582211,1.6234426,67142.0,67141.0,0.000924]
[1721579582452,1.72112718,67142.0,67141.0,0.000924]
[1721579582688,1.6234426,67142.0,67141.0,0.000924]
[1721579584268,1.75714774,67142.0,67141.0,0.000924]